bitfinex/quotes_ETHUSD_20220103
["timestamp","ask_amount","ask_price","bid_price","bid_amount"]
[1641221425427,0.65577,3814.3,3813.5,6.85]
[1641221425724,2.4438,3814.2,3814.0,0.00227369]
[1641221425925,1.03079437,3814.1,3813.0,3.06927369]
[1641221426127,0.315,3814.0,3813.0,3.72497369]
[1641221426327,0.315,3814.0,3813.6,0.0022737]
[1641221426525,1.22554488,3813.9,3813.6,0.0022737]
[1641221426726,1.54214488,3813.9,3813.5,0.00284212]
[1641221426924,0.104,3813.8,3813.5,0.00284212]
[1641221427130,1.0,3813.7,3813.5,0.00284212]
[1641221427523,1.0,3813.7,3813.5,2.11724359]
[1641221427524,0.1128,3813.6,3813.5,2.11724359]
[1641221427723,0.1128,3813.6,3813.5,2.11440147]
[1641221427926,0.1144,3813.6,3813.5,2.11724359]
[1641221428136,0.3,3813.7,3813.5,0.00284212]
[1641221428338,0.3984,3813.7,3813.5,0.00284212]
[1641221428539,0.3,3813.7,3813.5,0.00284212]
[1641221428842,0.112,3813.6,3813.2,6.21]
[1641221429040,0.112,3813.6,3813.5,2.11440147]
[1641221429339,0.315,3813.6,3813.5,2.11440147]
[1641221429541,0.7246,3813.6,3813.5,2.11724359]
[1641221429744,0.615,3813.6,3813.5,0.00284212]
[1641221429939,0.47920129,3813.6,3813.5,0.00284212]
[1641221430143,0.57840129,3813.6,3813.4,0.00341055]
[1641221430340,0.47920129,3813.6,3813.4,0.00341055]
[1641221430542,0.1016,3813.5,3813.4,0.00341055]
[1641221430742,0.4182,3813.5,3813.4,0.00341055]
[1641221430941,0.315,3813.5,3813.4,0.30341055]
[1641221431143,0.4174,3813.5,3812.9,0.00625266]
[1641221431343,3.2828592,3813.5,3813.4,0.00341055]
[1641221431540,3.2828592,3813.5,3813.4,0.0032122]
[1641221431743,2.9678592,3813.5,3813.4,0.0032122]
[1641221431981,2.9678592,3813.5,3813.4,0.00662275]
[1641221432181,3.0732182,3813.5,3813.4,0.00662275]
[1641221432393,3.07720941,3813.5,3813.4,0.00662275]
[1641221432586,6.67720941,3813.5,3813.4,0.00662275]
[1641221432788,3.50580941,3813.5,3813.4,0.00662275]
[1641221432988,3.50340941,3813.5,3813.4,0.00662275]
[1641221433191,3.50340941,3813.5,3811.1,2.93755861]
[1641221433192,12.80758214,3813.5,3811.1,2.93755861]
[1641221433392,0.01246504,3812.5,3811.1,2.93755861]
[1641221433591,1.43819051,3812.4,3811.2,4.45149681]
[1641221433786,1.73819051,3812.4,3811.2,4.45149681]
[1641221433987,1.36973367,3811.8,3811.2,2.7855177]
[1641221434191,1.3661978,3811.8,3811.2,2.7855177]
[1641221434388,0.0022737,3811.7,3811.2,2.7855177]
[1641221434790,0.00170527,3811.6,3811.2,2.7855177]
[1641221434997,1.48078082,3811.9,3810.7,5.93555587]
[1641221435194,1.48078082,3811.9,3811.4,0.6059]
[1641221435495,0.00113685,3811.8,3811.6,0.65587]
[1641221436351,0.00113685,3811.8,3811.5,1.31166]
[1641221437561,4.344e-05,3811.7,3811.5,1.31166]
[1641221437759,0.00113685,3811.8,3811.5,1.31166]
[1641221438561,2.9678592,3812.0,3811.5,11.61166]
[1641221438762,2.9678592,3812.0,3811.6,0.00113685]
[1641221438961,2.61946039,3812.4,3811.7,9.3]
[1641221439161,2.61946039,3812.4,3812.3,1.1347227]
[1641221439387,0.00170527,3812.3,3812.2,0.65574]
[1641221440198,0.00170527,3812.3,3812.0,1.6114]
[1641221440199,0.00170527,3812.3,3812.0,1.3114]
[1641221440393,0.00170527,3812.3,3812.0,2.72116497]
[1641221440592,0.00113684,3812.2,3812.0,2.72116497]
[1641221440996,0.00227369,3812.4,3812.0,2.72116497]
[1641221441195,2.61946039,3812.2,3812.0,2.72116497]
[1641221441794,2.61946039,3812.2,3812.0,3.37689497]
[1641221441993,2.61946039,3812.2,3812.1,5.95280796]
[1641221442196,0.03636233,3812.3,3812.1,0.30280796]
[1641221442396,0.06144073,3813.1,3812.2,9.3]
[1641221442813,0.13642937,3813.5,3812.2,9.3]
[1641221442814,0.13642937,3813.5,3812.5,1.31111]
[1641221442995,0.105359,3813.5,3812.9,1.31099]
[1641221443229,0.00170527,3813.3,3812.9,1.61099]
[1641221443629,0.00113685,3813.2,3813.0,1.40391304]
[1641221443830,0.00113685,3813.2,3813.0,2.71495304]
[1641221444031,0.00227369,3813.4,3813.0,2.71495304]
[1641221444631,0.105359,3813.5,3813.1,2.8]
[1641221444829,0.105359,3813.5,3813.0,2.71495304]
[1641221445030,0.105359,3813.5,3813.2,0.00113684]
[1641221445230,0.105359,3813.5,3813.1,0.00170527]
[1641221445435,0.105359,3813.5,3813.3,1.31104]
[1641221445840,1.77591785,3813.9,3813.3,1.31104]
[1641221446031,2.03898435,3813.9,3813.3,1.31104]
[1641221446234,0.00170528,3813.7,3813.6,7.30379962]
[1641221446437,1.73898435,3813.9,3813.6,2.66453962]
[1641221446633,2.61946039,3814.1,3813.6,2.66453962]
[1641221446634,2.61946039,3814.1,3813.9,0.062]
[1641221446891,6.5729548,3815.0,3813.9,0.9407]
[1641221447088,4.4517888,3814.9,3814.2,1.31049]
[1641221447288,2.26019964,3815.0,3814.6,3.0]
[1641221447487,2.22867527,3815.0,3814.5,1.53764935]
[1641221447689,2.22867527,3815.0,3814.7,0.00113685]
[1641221447889,2.82321158,3814.9,3814.7,0.65524]
[1641221448093,2.22867527,3815.0,3814.7,0.65524]
[1641221448288,2.22867527,3815.0,3814.8,0.6553]
[1641221448488,2.22867527,3815.0,3814.8,0.9553]
[1641221449290,2.33403427,3815.0,3814.8,0.9553]
[1641221449592,2.33403427,3815.0,3814.6,0.00170527]
[1641221449593,2.33403427,3815.0,3814.6,0.30170527]
[1641221449794,2.33403427,3815.0,3814.6,0.00170527]
[1641221449994,2.33403427,3815.0,3814.7,0.65634685]
[1641221450192,2.33403427,3815.0,3814.7,0.65521]
[1641221450392,2.33403427,3815.0,3814.8,1.38616534]
[1641221450835,3.48612942,3816.0,3814.9,9.3]
[1641221451043,3.48612942,3816.0,3815.4,0.65516]
[1641221451241,4.37664253,3816.6,3815.4,0.65516]
[1641221451437,4.34427953,3816.6,3815.4,0.65516]
[1641221451641,4.34427953,3816.6,3816.3,1.39622096]
[1641221451838,4.34427953,3816.6,3815.7,1.31017]
[1641221452040,4.34427953,3816.6,3816.3,0.3]
[1641221452238,3.4957504,3816.5,3816.3,0.3]
[1641221452439,3.4957504,3816.5,3816.4,0.5243]
[1641221452841,3.50812344,3816.5,3816.4,0.5243]
[1641221453039,3.61532344,3816.5,3816.4,0.5243]
[1641221453243,0.104,3816.5,3816.4,0.5243]
[1641221453437,0.1024,3816.5,3816.4,0.5243]
[1641221453638,0.00568424,3816.6,3816.4,0.5243]
[1641221456090,1.75563647,3816.6,3816.4,0.5243]
[1641221456487,1.74995223,3816.5,3816.4,0.5243]
[1641221457488,0.04066303,3816.6,3816.4,0.5243]
[1641221457689,0.00568424,3816.6,3816.4,0.5243]
[1641221457889,0.00568424,3816.6,3816.4,1.86748698]
[1641221458330,0.00568424,3816.6,3816.4,2.16748698]
[1641221458537,0.10404093,3816.9,3816.7,0.99637795]
[1641221458735,1.0,3817.7,3816.8,9.3]
[1641221458937,3.62021688,3817.8,3817.1,0.65486]
[1641221459134,3.58097932,3817.8,3817.1,0.65486]
[1641221459332,0.00625265,3817.7,3817.1,0.65486]
[1641221459532,0.00625265,3817.7,3817.4,1.01297215]
[1641221459734,0.00568423,3817.6,3817.4,1.01297215]
[1641221459936,0.00568423,3817.6,3817.0,1.60972]
[1641221460139,2.72488774,3817.7,3817.0,1.60972]
[1641221460140,0.00511581,3817.5,3817.0,1.30972]
[1641221460336,0.00511581,3817.5,3816.7,0.99637795]
[1641221460535,0.00454738,3817.4,3816.7,0.99637795]
[1641221460738,0.97009,3817.3,3816.7,0.99637795]
[1641221460937,4.58106597,3817.2,3816.7,0.99637795]
[1641221461140,0.315,3817.1,3816.7,0.99637795]
[1641221461340,3.06439801,3817.0,3816.7,0.99637795]
[1641221461538,0.315,3816.9,3816.7,0.99637795]
[1641221461739,21.01,3816.8,3816.7,7.795e-05]
[1641221461999,21.01,3816.8,3816.4,0.4743]
[1641221462000,5.0,3816.7,3816.4,0.4743]
[1641221462196,0.315,3816.6,3816.4,0.4743]
[1641221462400,0.7502,3816.6,3816.4,0.4743]
[1641221462602,0.1216,3816.5,3816.4,0.4743]
[1641221462802,3.39318395,3816.5,3816.4,0.4743]
[1641221463000,3.38358395,3816.5,3816.4,0.00113685]
[1641221463200,3.38518395,3816.5,3816.4,0.00113685]
[1641221463401,3.38118395,3816.5,3816.1,0.06086605]
[1641221463602,3.38598395,3816.5,3816.2,0.0022737]
[1641221463806,3.28038395,3816.5,3816.2,0.0022737]
[1641221464002,0.13819997,3816.7,3816.2,1.41201092]
[1641221464207,0.00113684,3816.8,3816.2,1.41201092]
[1641221464503,0.00113684,3816.8,3816.3,0.00170527]
[1641221465104,0.06086605,3817.3,3816.5,0.65502]
[1641221465304,0.06086605,3817.3,3816.6,1.30977]
[1641221465503,0.00113685,3817.0,3816.8,0.3]
[1641221465936,0.00113685,3817.0,3816.9,10.35417893]
[1641221466135,1.01920493,3817.8,3817.3,0.0620029]
[1641221466341,1.74995223,3818.4,3817.1,9.3]
[1641221466537,1.74995223,3818.4,3817.7,0.65471]
[1641221466936,3.44247971,3818.9,3817.8,1.04740889]
[1641221467138,1.72908085,3819.4,3817.8,1.04740889]
[1641221467139,1.72908085,3819.4,3818.5,0.65456]
[1641221467335,1.72908085,3819.4,3818.5,1.2421]
[1641221467536,1.72908085,3819.4,3818.9,0.65457]
[1641221468239,2.58317197,3819.7,3818.9,0.65457]
[1641221468441,2.60037081,3819.9,3819.2,0.65451]
[1641221468645,4.4e-05,3819.7,3819.5,0.65448]
[1641221468845,2.60037081,3819.9,3819.6,1.33903255]
[1641221469041,0.00541586,3819.8,3819.6,1.33903255]
[1641221469485,2.60037081,3819.9,3819.6,1.33903255]
[1641221469685,2.60037081,3819.9,3819.7,0.65918664]
[1641221469884,2.60037081,3820.5,3819.7,0.65918664]
[1641221470085,2.60037081,3820.5,3820.2,1.18892361]
[1641221470484,2.60037081,3820.5,3820.3,0.0014369]
[1641221471083,2.60037081,3820.4,3820.3,0.0014369]
[1641221471686,2.55037081,3820.4,3820.3,0.0014369]
[1641221471890,0.00140522,3820.8,3820.3,0.0014369]
[1641221472286,0.1144,3820.9,3820.1,0.00257374]
[1641221472287,0.0008368,3820.7,3820.1,0.00257374]
[1641221472487,0.0008368,3820.7,3820.0,0.00314217]
[1641221472688,0.11980522,3820.8,3819.8,0.00427901]
[1641221472889,0.65451,3820.7,3819.8,0.00427901]
[1641221473159,0.0008368,3820.7,3819.8,0.00427901]
[1641221473372,0.0008368,3820.7,3819.8,1.31312901]
[1641221473563,0.0008368,3820.7,3819.8,1.61312901]
[1641221473763,2.58317197,3819.9,3819.8,1.60885]
[1641221474171,2.58317197,3819.9,3819.8,1.61312901]
[1641221474370,2.58317197,3820.1,3819.8,1.61312901]
[1641221474767,2.58317197,3820.1,3819.9,0.00371059]
[1641221474968,2.49800725,3820.1,3819.9,0.00371059]
[1641221475168,2.49800725,3820.1,3819.9,0.65812059]
[1641221475570,3.44247971,3820.4,3820.0,0.00314217]
[1641221475768,3.44247971,3820.5,3820.1,0.65438]
[1641221476167,3.44247971,3820.5,3820.2,0.00200532]
[1641221476567,3.44247971,3820.5,3819.9,1.96313]
[1641221476568,3.44247971,3820.5,3820.0,0.00314217]
[1641221478290,3.44247971,3820.5,3820.1,0.65433]
[1641221478688,3.44247971,3820.5,3820.2,1.3376452]
[1641221478889,3.44247971,3820.5,3820.3,0.65427]
[1641221479090,3.44247971,3820.5,3820.3,0.6557069]
[1641221479295,3.44331651,3820.7,3820.4,0.00086847]
[1641221479489,3.44331651,3820.7,3820.5,1.30861]
[1641221479890,0.0008368,3820.7,3820.6,0.3]
[1641221480391,0.0008368,3820.7,3820.6,7.26381539]
[1641221480639,3.44247971,3821.1,3820.7,9.3]
[1641221480838,3.54100397,3821.3,3820.8,0.65415]
[1641221481032,0.00170527,3821.0,3820.9,9.19861288]
[1641221481232,3.54100397,3821.3,3820.9,2.30689288]
[1641221481431,0.03905317,3821.7,3820.9,2.60689288]
[1641221481633,0.00113684,3821.2,3821.0,0.06381539]
[1641221481836,0.00113684,3821.2,3820.9,2.67070827]
[1641221482036,4.34427953,3822.2,3820.9,2.67070827]
[1641221482233,4.34427953,3822.2,3821.5,0.65418]
[1641221482434,0.00625266,3822.1,3821.6,1.04033855]
[1641221482634,0.00625266,3822.1,3821.5,0.65418]
[1641221482833,0.00568423,3822.0,3821.5,0.71799539]
[1641221483036,0.00568423,3822.0,3821.6,0.06381539]
[1641221483236,0.00511581,3821.9,3821.6,0.06381539]
[1641221483436,0.00511581,3821.9,3821.5,1.01799539]
[1641221483638,4.74267953,3822.2,3821.6,0.06381539]
[1641221483639,0.00454739,3821.8,3821.6,0.06381539]
[1641221484038,0.00397896,3821.7,3821.5,1.01799539]
[1641221484239,0.00397896,3821.7,3821.6,0.06381539]
[1641221484483,0.0976,3822.1,3821.6,0.06381539]
[1641221484682,0.0984,3822.1,3821.5,1.01799539]
[1641221484881,0.00625266,3822.1,3821.6,0.06381539]
[1641221485279,0.00625266,3822.1,3821.5,0.71799539]
[1641221485480,0.00625266,3822.1,3821.6,0.06381539]
[1641221485884,0.00625266,3822.1,3821.5,0.71799539]
[1641221486085,0.00625266,3822.1,3821.6,0.06381539]
[1641221486483,0.00625266,3822.1,3821.5,1.01799539]
[1641221486685,0.10465266,3822.1,3821.6,0.06381539]
[1641221486885,0.00625266,3822.1,3821.6,0.06381539]
[1641221487090,0.10385266,3822.1,3821.5,1.01799539]
[1641221487286,0.11105266,3822.1,3821.6,0.06381539]
[1641221487485,0.00625266,3822.1,3821.5,1.01799539]
[1641221487684,4.35053219,3822.1,3821.5,1.01799539]
[1641221487886,4.35053219,3822.1,3821.6,0.06381539]
[1641221488132,4.35053219,3822.1,3821.5,1.01799539]
[1641221488340,2.65787391,3821.6,3821.5,1.01799539]
[1641221488538,4.35053219,3822.1,3821.5,1.01799539]
[1641221488539,3.54383187,3821.9,3821.5,7.85418]
[1641221488740,0.00341054,3821.6,3821.5,7.85418]
[1641221489041,3.31179187,3822.0,3821.7,7.65]
[1641221489438,3.31179187,3822.0,3821.8,1.33668765]
[1641221489838,3.31179187,3822.0,3821.7,2.26203]
[1641221490039,3.31179187,3822.0,3821.7,2.91603]
[1641221491348,0.01274666,3821.8,3820.7,1.77776629]
[1641221491541,1.308,3821.6,3820.7,1.77776629]
[1641221491739,1.308,3821.6,3820.4,2.00086847]
[1641221491740,1.308,3821.4,3821.1,0.00284212]
[1641221491984,9.808,3821.2,3821.1,0.00284212]
[1641221492184,9.808,3821.2,3820.5,0.00625266]
[1641221492185,1.12213078,3821.1,3820.5,0.00625266]
[1641221492383,1.623,3821.0,3820.5,0.00625266]
[1641221492580,1.308,3820.8,3820.5,0.00625266]
[1641221492781,1.308,3820.8,3820.1,1.77776629]
[1641221492981,1.308,3820.8,3819.2,1.77776629]
[1641221492982,1.0,3820.6,3819.2,1.77776629]
[1641221493189,1.0,3820.6,3820.2,0.00170527]
[1641221493388,0.00113685,3820.7,3820.3,1.26402077]
[1641221493587,2.04754223,3820.5,3820.3,1.26402077]
[1641221493787,0.00113685,3820.7,3820.3,2.56230077]
[1641221493988,0.00113685,3820.7,3820.5,1.0]
[1641221494388,0.00113685,3820.7,3820.5,3.26255]
[1641221494586,0.00113685,3820.7,3820.5,2.26255]
[1641221494790,0.00113685,3820.7,3820.5,2.9167337]
[1641221495089,2.89530733,3821.9,3821.2,1.47345415]
[1641221495287,4.62604913,3822.0,3821.2,1.47345415]
[1641221495641,0.00397896,3821.4,3821.1,0.5888]
[1641221495843,0.00397896,3821.4,3820.9,1.17761]
[1641221496042,0.00341054,3821.3,3820.9,1.47761]
[1641221496341,0.00284211,3821.2,3820.9,1.47761]
[1641221496742,0.00227369,3821.1,3820.9,1.47761]
[1641221497143,0.00170527,3821.0,3820.9,1.47761]
[1641221497542,0.00284211,3821.0,3820.9,1.47761]
[1641221499896,4.211e-05,3821.0,3820.9,1.77761]
[1641221500092,3.31179187,3822.0,3820.9,1.77761]
[1641221500291,3.31179187,3822.0,3820.9,2.43007316]
[1641221500491,0.00397897,3821.9,3821.4,0.3]
[1641221500897,0.00341055,3821.8,3821.7,0.1968]
[1641221501295,0.00341055,3821.8,3821.7,9.30803487]
[1641221501495,0.00341055,3821.8,3821.7,9.60803487]
[1641221502994,0.00341055,3821.8,3821.7,1.80803487]
[1641221504153,3.60474494,3822.7,3822.0,0.6]
[1641221504154,1.39880681,3822.3,3822.0,0.6]
[1641221504349,2.65826241,3822.5,3822.1,0.45319997]
[1641221504548,2.65826241,3822.5,3822.1,1.75086997]
[1641221504747,2.65826241,3822.5,3822.2,0.3]
[1641221504947,0.06039506,3822.7,3822.3,1.38179219]
[1641221505153,0.06039506,3822.7,3822.4,1.3075654]
[1641221505351,0.00454738,3822.6,3822.5,0.65379]
[1641221505648,0.0073895,3823.1,3822.5,0.3]
[1641221506047,0.00682108,3823.0,3822.5,0.3]
[1641221506448,2.65826241,3823.5,3822.5,0.3]
[1641221506449,0.00625265,3822.9,3822.5,0.3]
[1641221506896,3.08008671,3823.4,3822.5,0.3]
[1641221506897,0.00568423,3822.8,3822.5,0.3]
[1641221507097,0.00568423,3822.8,3822.3,0.3]
[1641221507397,0.00511581,3822.7,3822.3,0.3]
[1641221507905,1.58729257,3823.0,3822.2,1.29763]
[1641221508099,2.63481594,3822.9,3822.2,1.29763]
[1641221508300,2.65826241,3822.8,3822.2,1.29763]
[1641221508499,2.96394664,3822.8,3822.2,1.29763]
[1641221508700,0.00511581,3822.7,3822.2,1.29763]
[1641221509600,0.00511581,3822.7,3822.3,0.3]
[1641221511833,2.7900139,3822.7,3822.3,0.3]
[1641221512036,3.1050139,3822.7,3822.2,1.29763]
[1641221512436,5.58751581,3822.7,3822.2,1.29763]
[1641221512637,0.65417,3822.4,3822.2,1.29763]
[1641221513040,0.00284211,3822.3,3822.2,1.29763]
[1641221513236,2.66110452,3822.3,3822.2,1.59763]
[1641221513439,3.69491994,3822.3,3822.2,1.59763]
[1641221514035,1.03665753,3822.3,3822.2,1.59763]
[1641221514499,3.64050184,3822.3,3822.2,1.59763]
[1641221514696,1.03665753,3822.3,3822.2,1.59763]
[1641221514894,2.5142896,3822.3,3822.2,3.07982268]
[1641221515099,5.14436928,3822.3,3822.2,3.07982268]
[1641221515400,2.5142896,3822.3,3822.2,2.77982268]
[1641221515602,5.14416781,3822.3,3822.2,2.77982268]
[1641221516198,5.14416781,3822.3,3822.2,1.29763]
[1641221516401,7.80243022,3822.3,3822.2,1.29763]
[1641221517001,5.14416781,3822.3,3822.2,1.59763]
[1641221518638,7.80561232,3822.3,3822.2,1.59763]
[1641221519236,8.68851769,3822.3,3822.2,1.59763]
[1641221519439,10.10271769,3822.3,3822.2,1.59763]
[1641221519639,10.11711769,3822.3,3822.2,1.59763]
[1641221519838,10.12351769,3822.3,3822.2,0.3]
[1641221520039,9.3,3822.2,3821.9,0.06039403]
[1641221520238,9.3,3821.9,3821.0,0.00113684]
[1641221520441,1.315,3821.8,3821.0,0.00113684]
[1641221520639,1.315,3821.8,3820.6,0.00682109]
[1641221520640,9.38167479,3821.8,3820.6,0.00682109]
[1641221520843,0.1112,3821.7,3820.6,0.00682109]
[1641221521039,3.83668411,3821.3,3820.6,0.00682109]
[1641221521238,1.07551105,3820.7,3820.3,0.00852636]
[1641221521437,1.07551105,3820.7,3820.1,0.0096632]
[1641221521640,1.37551105,3820.7,3820.1,0.0096632]
[1641221521882,3.14388926,3820.7,3820.1,0.0096632]
[1641221522282,3.14388926,3820.7,3819.9,0.01080005]
[1641221522483,0.65449,3820.4,3819.9,0.01080005]
[1641221522684,0.03902403,3820.5,3819.9,0.01080005]
[1641221522887,0.3,3820.4,3819.9,0.01080005]
[1641221523084,1.76837821,3820.5,3819.9,0.01080005]
[1641221523491,2.06837821,3820.5,3819.7,0.0119369]
[1641221523888,2.06837821,3820.5,3819.7,0.4045869]
[1641221524388,1.77763207,3820.5,3819.8,1.33976217]
[1641221524590,1.17204673,3820.1,3819.8,1.63976217]
[1641221524789,1.17204673,3820.1,3819.9,0.01080005]
[1641221524989,0.03247107,3820.2,3819.9,0.01080005]
[1641221525192,0.03792809,3820.6,3819.9,0.01080005]
[1641221525389,1.76837821,3820.7,3819.9,0.01080005]
[1641221525637,0.65449,3820.4,3819.9,0.01080005]
[1641221526231,0.95449,3820.4,3819.7,0.0119369]
[1641221526432,1.39418819,3820.3,3819.7,0.0119369]
[1641221527231,1.39418819,3820.3,3819.7,1.3403306]
[1641221527633,1.76837821,3820.6,3819.8,0.01136847]
[1641221528033,2.65256732,3820.9,3819.8,2.06196217]
[1641221528034,1.76837821,3820.7,3819.8,2.06196217]
[1641221528243,1.76837821,3820.7,3820.2,0.65422]
[1641221528545,1.76837821,3820.7,3820.5,0.39251]
[1641221528841,3.57656024,3821.2,3820.6,0.00682109]
[1641221528842,1.07189394,3821.2,3820.6,0.00682109]
[1641221529041,1.03201781,3821.2,3820.6,0.00682109]
[1641221529241,0.03256683,3821.3,3820.6,0.00682109]
[1641221529501,0.0608539,3821.8,3820.6,0.00682109]
[1641221530303,0.0608539,3821.8,3820.8,0.39253]
[1641221530503,1.12547835,3821.4,3820.8,0.39253]
[1641221530704,1.12547835,3821.4,3820.9,0.00511582]
[1641221531407,1.42547835,3821.4,3820.9,0.00511582]
[1641221532007,1.32916196,3821.4,3820.9,0.00511582]
[1641221532208,1.32916196,3821.4,3820.6,0.39258]
[1641221532408,2.57424309,3821.3,3820.7,0.00625266]
[1641221532809,3.22859309,3821.3,3820.5,0.00738951]
[1641221533439,0.65435,3821.3,3820.5,0.00738951]
[1641221533840,0.0376081,3821.5,3820.6,0.39258]
[1641221534042,1.76837821,3821.6,3820.7,0.78504]
[1641221534344,1.76837821,3821.7,3820.8,0.00568424]
[1641221534943,2.65256732,3822.0,3821.1,0.65411]
[1641221535143,6.21170527,3822.1,3821.3,1.30785]
[1641221535342,2.65256732,3822.7,3822.3,9.3]
[1641221535547,3.53668411,3823.0,3822.4,2.92810687]
[1641221535548,5.40107703,3822.8,3822.4,2.92810687]
[1641221535744,4.34427953,3823.6,3823.0,0.14695184]
[1641221536047,1.26156072,3823.4,3823.2,0.65367]
[1641221536252,4.34427953,3823.6,3823.3,10.90212498]
[1641221536547,5.0,3824.0,3823.3,11.50212498]
[1641221536548,0.00795792,3823.5,3823.3,11.50212498]
[1641221536746,5.792e-05,3823.5,3823.4,10.3]
[1641221536995,8.53142707,3824.0,3823.6,0.6535349]
[1641221537195,8.53142707,3824.0,3823.8,0.65355]
[1641221537401,0.00233162,3823.9,3823.8,10.03055]
[1641221537597,0.00233162,3823.9,3823.8,11.03055]
[1641221538205,0.00233162,3823.9,3823.8,2.03055]
[1641221538807,0.00233162,3823.9,3823.8,1.377]
[1641221539605,0.00233162,3823.9,3823.8,0.377]
[1641221539802,0.00233162,3823.9,3823.8,1.377]
[1641221540206,0.00233162,3823.9,3823.7,0.56142]
[1641221540649,0.00176319,3823.8,3823.7,0.26142]
[1641221541059,0.00176319,3823.8,3823.4,1.82287]
[1641221541363,0.00119477,3823.7,3823.4,0.82287]
[1641221541554,0.00119477,3823.7,3823.4,1.82287]
[1641221541754,0.00119477,3823.7,3823.4,0.82287]
[1641221541955,0.00119477,3823.7,3823.4,1.82287]
[1641221542356,0.00119477,3823.7,3823.4,0.82287]
[1641221542556,0.00119477,3823.7,3823.4,1.82287]
[1641221542757,0.00119477,3823.7,3823.4,0.82287]
[1641221542956,0.00119477,3823.7,3823.4,1.82287]
[1641221544605,0.00119477,3823.7,3823.4,0.82287]
[1641221544806,0.00119477,3823.7,3823.4,1.82287]
[1641221545407,0.00119477,3823.7,3823.4,2.13026]
[1641221545611,0.00119477,3823.7,3823.4,3.13026]
[1641221546806,0.00119477,3823.7,3823.4,2.4766]
[1641221547208,0.00119477,3823.7,3823.4,1.82287]
[1641221547408,0.00119477,3823.7,3823.4,1.3]
[1641221547808,0.00119477,3823.7,3823.4,1.0]
[1641221548010,0.00119477,3823.7,3823.3,0.49612]
[1641221548281,0.37819477,3823.7,3823.0,0.14695184]
[1641221548479,3.21029283,3823.7,3823.0,0.14695184]
[1641221548680,3.89579283,3823.7,3823.1,0.00221577]
[1641221548882,3.89579283,3823.7,3822.5,0.06121027]
[1641221548883,1.0,3823.4,3822.5,0.06121027]
[1641221549080,3.94025752,3823.3,3822.5,0.06121027]
[1641221549283,0.65421,3823.0,3822.6,0.00284212]
[1641221549478,4.20909806,3822.9,3822.6,0.00284212]
[1641221549679,2.0,3822.8,3822.6,0.00284212]
[1641221549878,9.677,3822.7,3822.6,0.00284212]
[1641221550080,10.977,3822.7,3822.6,0.00284212]
[1641221550279,14.18545629,3822.7,3822.6,0.00284212]
[1641221550779,14.18545629,3822.7,3822.5,1.027e-05]
[1641221550780,10.60863,3822.6,3822.5,1.027e-05]
[1641221550978,15.95351871,3822.6,3822.5,1.027e-05]
[1641221551179,18.29531973,3822.6,3820.6,0.19629]
[1641221551382,1.08559757,3821.2,3820.6,0.19629]
[1641221551580,1.08559757,3821.2,3820.7,0.01080004]
[1641221551783,1.38559757,3821.2,3820.7,0.01080004]
[1641221551994,1.38559757,3821.2,3820.5,0.01193689]
[1641221552396,0.03470694,3821.3,3820.5,0.01193689]
[1641221552597,0.3,3821.2,3820.5,0.01193689]
[1641221552797,2.76042941,3821.7,3820.5,0.01193689]
[1641221552798,3.06042941,3821.7,3820.5,0.01193689]
[1641221552999,3.06042941,3821.7,3820.6,2.96115771]
[1641221553401,3.06042941,3821.7,3820.6,0.49629]
[1641221553603,1.1750156,3821.2,3820.6,0.49629]
[1641221553803,1.4750156,3821.2,3820.6,0.19629]
[1641221554205,0.3,3821.2,3820.6,0.19629]
[1641221554409,2.74093526,3822.0,3820.6,0.19629]
[1641221554605,2.03757474,3822.1,3821.2,0.19625]
[1641221554804,0.03757474,3822.1,3821.2,0.19625]
[1641221555004,2.87269614,3822.4,3821.3,0.0073895]
[1641221555207,1.0483459,3821.9,3821.3,0.0073895]
[1641221555407,2.81941614,3821.8,3821.3,0.0073895]
[1641221555655,0.01261382,3821.7,3821.3,0.0073895]
[1641221555853,1.11181382,3821.7,3820.5,0.01193689]
[1641221556054,2.81941614,3821.6,3820.5,0.01193689]
[1641221556254,1.3464093,3820.3,3820.1,0.01421058]
[1641221556656,1.6464093,3820.3,3820.1,0.01421058]
[1641221556958,1.6464093,3820.3,3819.6,0.0170527]
[1641221557564,2.88919258,3820.2,3819.6,0.0170527]
[1641221557955,2.88919258,3820.2,3819.2,0.01932639]
[1641221558156,1.27895947,3819.4,3819.2,0.01932639]
[1641221558359,1.27895947,3819.4,3818.7,0.21855851]
[1641221558561,2.65012961,3819.3,3818.7,0.02216851]
[1641221558759,2.65012961,3819.3,3818.8,0.02160009]
[1641221558960,1.57895947,3819.4,3818.4,0.02387378]
[1641221559158,0.3,3819.4,3818.4,0.02387378]
[1641221559409,0.03282117,3820.4,3819.1,0.85089]
[1641221559606,0.01233329,3820.7,3819.1,0.85089]
[1641221559803,0.3,3820.8,3819.2,0.01932639]
[1641221560410,1.34052568,3820.2,3819.3,1.08187857]
[1641221560611,1.64052568,3820.2,3819.6,0.19636]
[1641221560810,1.34052568,3820.2,3819.6,0.19636]
[1641221561013,1.34052568,3820.2,3819.6,0.16284428]
[1641221561413,0.0022737,3820.1,3819.6,0.16284428]
[1641221561810,1.34052568,3820.2,3819.6,0.16284428]
[1641221561811,0.00170527,3820.0,3819.6,0.16284428]
[1641221562213,1.34052568,3820.2,3819.6,0.16284428]
[1641221562214,0.00113685,3819.9,3819.6,0.81731428]
[1641221562610,1.34052568,3820.2,3819.6,0.81731428]
[1641221562611,0.0022737,3820.1,3819.7,0.3]
[1641221563011,0.00170527,3820.0,3819.7,0.3]
[1641221563275,0.00170527,3820.0,3819.8,0.19633]
[1641221563481,0.00113685,3819.9,3819.8,0.19633]
[1641221564678,0.00113685,3819.9,3819.7,0.58886]
[1641221564889,8.61225294,3819.8,3818.6,1.3283937]
[1641221565083,8.91225294,3819.8,3818.6,1.3283937]
[1641221565293,0.65469,3819.6,3818.7,0.00568423]
[1641221565480,0.95469,3819.6,3818.7,0.00568423]
[1641221565883,1.19503728,3819.5,3818.7,0.00568423]
[1641221566083,1.80703728,3819.5,3818.7,0.00568423]
[1641221566484,1.0,3818.8,3818.7,0.00568423]
[1641221566684,2.26143868,3818.8,3818.7,0.00568423]
[1641221566914,2.56143868,3818.8,3818.7,0.00568423]
[1641221567107,3.56143868,3818.8,3818.4,0.0073895]
[1641221567311,3.56143868,3818.8,3818.2,0.00852635]
[1641221567312,1.69563868,3818.8,3818.2,0.00852635]
[1641221567514,1.69563868,3818.8,3817.4,0.13097]
[1641221567515,4.22275163,3818.7,3818.1,0.00909477]
[1641221567707,4.22275163,3818.7,3817.2,1.3283937]